bitfinex/quotes_BTCUSD_20260117
["timestamp","ask_amount","ask_price","bid_price","bid_amount"]
[1768616344897,0.01049813,95255.0,95252.0,0.01049846]
[1768616345432,0.01049813,95255.0,95252.0,0.05249228]
[1768616345784,0.01049813,95255.0,95251.0,0.01049857]
[1768616345990,0.01049813,95255.0,95251.0,0.06299142]
[1768616346220,0.01049802,95256.0,95252.0,0.06299067]
[1768616346427,0.01049802,95256.0,95252.0,0.01049846]
[1768616346596,0.01049802,95256.0,95252.0,0.06299064]
[1768616346805,0.01049802,95256.0,95252.0,0.0629907]
[1768616347230,0.06298927,95255.0,95251.0,0.01049857]
[1768616347451,0.01049813,95255.0,95251.0,0.01049857]
[1768616347647,0.06298886,95255.0,95251.0,0.01049857]
[1768616347914,0.00042269,95252.0,95250.0,0.01049868]
[1768616348148,0.06299026,95253.0,95250.0,0.01045322]
[1768616348149,0.01049835,95253.0,95250.0,0.01045322]
[1768616348353,0.01010356,95254.0,95250.0,0.01040776]
[1768616348565,0.01010356,95254.0,95251.0,0.01049857]
[1768616348980,0.01049813,95255.0,95252.0,0.01049846]
[1768616349179,0.01049802,95256.0,95252.0,0.06299068]
[1768616349399,0.01049802,95256.0,95252.0,0.01049846]
[1768616349593,0.01049791,95257.0,95253.0,0.01049835]
[1768616349802,0.06298752,95257.0,95253.0,0.01049835]
[1768616350008,0.01049791,95257.0,95253.0,0.06299011]
[1768616350650,0.01049802,95256.0,95252.0,0.06299064]
[1768616350902,0.01049802,95256.0,95252.0,0.06294518]
[1768616351091,0.06298881,95255.0,95252.0,0.010453]
[1768616351293,0.01049813,95255.0,95252.0,0.010453]
[1768616351700,0.01049813,95255.0,95252.0,0.01040754]
[1768616352038,0.01049802,95256.0,95253.0,0.01049835]
[1768616352245,0.06298881,95255.0,95251.0,0.01049857]
[1768616352453,0.01149813,95255.0,95251.0,0.01049857]
[1768616352660,0.001,95255.0,95252.0,0.06299069]
[1768616353261,0.01149813,95255.0,95251.0,0.01049857]
[1768616353467,0.01149813,95255.0,95251.0,0.06299137]
[1768616353670,0.01149813,95255.0,95252.0,0.01049846]
[1768616353869,0.00042719,95253.0,95252.0,0.01049846]
[1768616354113,0.00042719,95253.0,95252.0,0.06299079]
[1768616354302,0.00042719,95253.0,95251.0,0.01049857]
[1768616354527,0.06299056,95253.0,95248.0,0.02099703]
[1768616354899,0.01049846,95252.0,95248.0,0.02099703]
[1768616355099,0.01049846,95252.0,95248.0,0.0104989]
[1768616355100,0.06299104,95252.0,95248.0,0.0104989]
[1768616355309,0.01049846,95252.0,95248.0,0.0104989]
[1768616356088,0.01049846,95252.0,95248.0,0.02099736]
[1768616356378,0.01049846,95252.0,95249.0,0.06299255]
[1768616357018,0.01049824,95254.0,95250.0,0.01049868]
[1768616357463,0.01049824,95254.0,95251.0,0.01049857]
[1768616357670,0.01049813,95255.0,95252.0,0.01049846]
[1768616358531,0.01049813,95255.0,95252.0,0.010453]
[1768616358745,0.01049813,95255.0,95252.0,0.06294518]
[1768616359692,0.01049802,95256.0,95252.0,0.06294518]
[1768616360109,0.00042719,95253.0,95252.0,0.06294518]
[1768616361980,0.00142719,95253.0,95252.0,0.06294518]
[1768616362556,0.00042719,95253.0,95252.0,0.06294518]
[1768616362755,0.00042719,95253.0,95251.0,0.01049857]
[1768616362960,0.01049802,95256.0,95253.0,0.06299007]
[1768616363776,0.01049791,95257.0,95253.0,0.06267417]
[1768616364239,0.0004317,95254.0,95253.0,0.06267417]
[1768616364442,0.0004317,95254.0,95252.0,0.01049846]
[1768616364650,0.01049802,95256.0,95253.0,0.01049835]
[1768616364863,0.01049791,95257.0,95253.0,0.06298976]
[1768616365123,0.0629919,95251.0,95248.0,0.00800082]
[1768616365341,0.06299195,95251.0,95248.0,0.00795537]
[1768616365558,0.0104989,95248.0,95243.0,0.01049945]
[1768616365776,0.0104989,95248.0,95244.0,0.13773934]
[1768616365991,0.0104989,95248.0,95246.0,0.0314975]
[1768616366207,0.01010475,95248.0,95246.0,0.0314975]
[1768616366416,0.05249359,95250.0,95246.0,0.0314975]
[1768616366417,0.01049868,95250.0,95246.0,0.0314975]
[1768616366627,0.01049868,95250.0,95247.0,0.06299406]
[1768616366848,0.01049857,95251.0,95247.0,0.06299396]
[1768616367097,0.01049857,95251.0,95248.0,0.0104989]
[1768616367565,0.01049857,95251.0,95248.0,0.01045345]
[1768616367809,0.01049846,95252.0,95248.0,0.06294782]
[1768616368227,0.01049846,95252.0,95249.0,0.01049879]
[1768616369102,0.06299087,95252.0,95247.0,0.02099802]
[1768616369307,0.01049868,95250.0,95247.0,0.01049901]
[1768616369733,0.01049868,95250.0,95247.0,0.02099802]
[1768616369934,0.01049868,95250.0,95247.0,0.01049901]
[1768616370142,0.01049835,95253.0,95249.0,0.01049879]
[1768616370343,0.01049846,95252.0,95249.0,0.01049879]
[1768616370555,0.01049857,95251.0,95247.0,0.02099802]
[1768616370763,0.01049857,95251.0,95247.0,0.01049901]
[1768616370971,0.01049857,95251.0,95248.0,0.0104989]
[1768616371171,0.01049857,95251.0,95247.0,0.02099802]
[1768616371377,0.01049868,95250.0,95247.0,0.02099802]
[1768616371582,0.01049857,95251.0,95248.0,0.0104989]
[1768616372003,0.01049857,95251.0,95248.0,0.06299339]
[1768616372268,0.01049846,95252.0,95249.0,0.12724]
[1768616372669,0.05249288,95251.0,95249.0,0.12724]
[1768616372916,0.06299095,95252.0,95249.0,0.12724]
[1768616373174,0.06299117,95252.0,95249.0,0.12724]
[1768616373378,0.01049846,95252.0,95249.0,0.12724]
[1768616373628,0.06299134,95252.0,95249.0,0.12724]
[1768616373842,0.01049846,95252.0,95249.0,0.12724]
[1768616374471,0.05249288,95251.0,95249.0,0.12724]
[1768616374687,0.0629912,95252.0,95249.0,0.12724]
[1768616375114,0.01049846,95252.0,95249.0,0.12724]
[1768616375794,0.06299117,95252.0,95249.0,0.12724]
[1768616376186,0.00041369,95250.0,95249.0,0.12724]
[1768616378252,0.00041369,95250.0,95249.0,0.17973398]
[1768616379068,0.00041369,95250.0,95249.0,0.12724]
[1768616380332,0.00041369,95250.0,95249.0,0.17968853]
[1768616380538,0.00041369,95250.0,95249.0,0.12719455]
[1768616381325,0.00041369,95250.0,95249.0,0.17968853]
[1768616381526,0.00041369,95250.0,95249.0,0.12719455]
[1768616382805,0.05641152,95256.0,95252.0,0.06299065]
[1768616383016,0.05249133,95254.0,95250.0,0.01049868]
[1768616383220,0.01049813,95255.0,95250.0,0.01049868]
[1768616383655,0.01049835,95253.0,95250.0,0.01049868]
[1768616383861,0.01049846,95252.0,95249.0,0.19018728]
[1768616384091,0.01049846,95252.0,95249.0,0.13769334]
[1768616384290,0.06299095,95252.0,95249.0,0.12719455]
[1768616384493,0.01049846,95252.0,95249.0,0.12719455]
[1768616384929,0.01049846,95252.0,95249.0,0.13769334]
[1768616385132,0.01049846,95252.0,95249.0,0.12719455]
[1768616385546,0.06299087,95252.0,95249.0,0.12719455]
[1768616385924,0.01049846,95252.0,95249.0,0.12719455]
[1768616386359,0.01149846,95252.0,95249.0,0.12719455]
[1768616386562,0.001,95252.0,95249.0,0.19018695]
[1768616386966,0.01049835,95253.0,95249.0,0.19018695]
[1768616387375,0.01049835,95253.0,95250.0,0.06299208]
[1768616387588,0.01049835,95253.0,95250.0,0.01049868]
[1768616387923,0.01049846,95252.0,95249.0,0.12719455]
[1768616388336,0.06299116,95252.0,95249.0,0.12719455]
[1768616388577,0.01049846,95252.0,95249.0,0.12719455]
[1768616389208,0.05249326,95251.0,95249.0,0.12719455]
[1768616389338,0.01149846,95252.0,95249.0,0.12719455]
[1768616390049,0.06299098,95252.0,95249.0,0.12719455]
[1768616390443,0.06299131,95252.0,95249.0,0.12719455]
[1768616390651,0.06299117,95252.0,95249.0,0.12719455]
[1768616390856,0.01049846,95252.0,95249.0,0.13769334]
[1768616391061,0.01049846,95252.0,95249.0,0.19018728]
[1768616391227,0.01049846,95252.0,95249.0,0.13769334]
[1768616391474,0.01049835,95253.0,95249.0,0.13769334]
[1768616391680,0.01049835,95253.0,95250.0,0.01049868]
[1768616392287,0.01049835,95253.0,95249.0,0.19018713]
[1768616392485,0.01049846,95252.0,95249.0,0.12719455]
[1768616392661,0.01049846,95252.0,95249.0,0.13769334]
[1768616392860,0.01049846,95252.0,95249.0,0.12719455]
[1768616393143,0.01049934,95244.0,95237.0,0.01050012]
[1768616393348,0.01049967,95241.0,95237.0,0.01050012]
[1768616393554,0.01050001,95238.0,95235.0,0.01050034]
[1768616393783,0.01050001,95238.0,95236.0,0.12724]
[1768616393983,0.01049979,95240.0,95236.0,0.17429295]
[1768616394185,0.01049979,95240.0,95236.0,0.19529319]
[1768616394390,0.01049967,95241.0,95237.0,0.11005326]
[1768616394595,0.01049967,95241.0,95238.0,0.05250002]
[1768616394797,0.01049967,95241.0,95237.0,0.08905272]
[1768616395008,0.01049967,95241.0,95237.0,0.14155292]
[1768616395222,0.06299687,95243.0,95238.0,0.01050001]
[1768616395410,0.06299687,95243.0,95238.0,0.0629999]
[1768616395599,0.01049945,95243.0,95239.0,0.0104999]
[1768616395800,0.0629974,95242.0,95238.0,0.01050001]
[1768616396004,0.01049956,95242.0,95238.0,0.06299999]
[1768616396159,0.01049956,95242.0,95239.0,0.0104999]
[1768616396371,0.01049956,95242.0,95238.0,0.06295443]
[1768616396786,0.01049956,95242.0,95239.0,0.0104999]
[1768616397502,0.01049956,95242.0,95239.0,0.06299936]
[1768616397717,0.01049956,95242.0,95239.0,0.0104999]
[1768616398141,0.01049945,95243.0,95239.0,0.06299919]
[1768616398334,0.01049956,95242.0,95238.0,0.02095413]
[1768616398540,0.01049956,95242.0,95239.0,0.0104999]
[1768616399146,0.01049956,95242.0,95239.0,0.06299932]
[1768616399348,0.01049945,95243.0,95239.0,0.06299932]
[1768616400000,0.01049945,95243.0,95240.0,0.01049979]
[1768616400415,0.01049945,95243.0,95239.0,0.0104999]
[1768616400613,0.01049945,95243.0,95240.0,0.01049979]
[1768616401229,0.01049956,95242.0,95239.0,0.0104999]
[1768616401438,0.06299612,95244.0,95239.0,0.0104999]
[1768616401439,0.04209678,95244.0,95240.0,0.01049979]
[1768616401650,0.01049923,95245.0,95242.0,0.01049956]
[1768616401858,0.00529912,95246.0,95242.0,0.01045412]
[1768616402503,0.0104989,95248.0,95244.0,0.01049934]
[1768616402715,0.00047228,95250.0,95247.0,0.01049901]
[1768616402926,0.00047228,95250.0,95248.0,0.05249407]
[1768616403175,0.00047228,95250.0,95248.0,0.04705295]
[1768616403393,0.00047228,95250.0,95248.0,0.04699732]
[1768616403603,0.00047228,95250.0,95247.0,0.01049901]
[1768616403811,0.00047228,95250.0,95248.0,0.05249411]
[1768616404095,0.00047228,95250.0,95248.0,0.05249406]
[1768616404302,0.00047228,95250.0,95248.0,0.05249454]
[1768616404508,0.00047228,95250.0,95247.0,0.01049901]
[1768616404920,0.00047228,95250.0,95248.0,0.05249409]
[1768616405135,0.00047228,95250.0,95247.0,0.01049901]
[1768616405556,0.00047228,95250.0,95249.0,0.05249398]
[1768616405763,0.00047228,95250.0,95247.0,0.01049901]
[1768616405764,0.00047228,95250.0,95247.0,0.06299307]
[1768616406064,0.00047228,95250.0,95249.0,0.05249398]
[1768616408007,0.00047228,95250.0,95247.0,0.06299383]
[1768616408819,0.00047228,95250.0,95249.0,0.05249398]
[1768616409953,0.00047228,95250.0,95247.0,0.01049901]
[1768616410915,0.01097096,95250.0,95246.0,0.01049912]
[1768616411251,0.00047228,95250.0,95247.0,0.01049901]
[1768616411879,0.00047228,95250.0,95247.0,0.06299362]
[1768616412086,0.00047228,95250.0,95248.0,0.05249439]
[1768616412612,0.00047228,95250.0,95247.0,0.01049901]
[1768616412782,0.00047228,95250.0,95248.0,0.05249438]
[1768616413334,0.00047228,95250.0,95247.0,0.01049901]
[1768616414366,0.01097096,95250.0,95247.0,0.01049901]
[1768616414926,0.01097096,95250.0,95246.0,0.06299456]
[1768616415138,0.00047228,95250.0,95247.0,0.06299405]
[1768616416909,0.00047228,95250.0,95247.0,0.01049901]
[1768616417243,0.01097096,95250.0,95247.0,0.01049901]
[1768616417588,0.01097096,95250.0,95246.0,0.01049912]
[1768616417797,0.01097096,95250.0,95246.0,0.06299471]
[1768616417991,0.01097096,95250.0,95246.0,0.01049912]
[1768616418198,0.00047228,95250.0,95248.0,0.0524943]
[1768616418401,0.00047228,95250.0,95247.0,0.06299403]
[1768616419721,0.00047228,95250.0,95248.0,0.05249437]
[1768616420112,0.00047228,95250.0,95247.0,0.06299301]
[1768616420567,0.00047228,95250.0,95247.0,0.01049901]
[1768616420790,0.01097096,95250.0,95247.0,0.01049901]
[1768616421002,0.00047228,95250.0,95247.0,0.01049901]
[1768616421608,0.00047228,95250.0,95247.0,0.06299396]
[1768616421773,0.00047228,95250.0,95248.0,0.0524944]
[1768616421976,0.00047228,95250.0,95247.0,0.06299396]
[1768616422730,1e-08,95250.0,95249.0,0.05249398]
[1768616428160,0.01049813,95255.0,95252.0,0.01049846]
[1768616428621,0.01049813,95255.0,95252.0,0.06299071]
[1768616428841,0.02099648,95256.0,95252.0,0.06299071]
[1768616429425,0.02099648,95256.0,95253.0,0.01049835]
[1768616430346,0.02099648,95256.0,95253.0,0.06298994]
[1768616430927,0.02060185,95256.0,95252.0,0.01049846]
[1768616431105,0.06298894,95255.0,95252.0,0.01049846]
[1768616431641,0.01049813,95255.0,95252.0,0.01049846]
[1768616431844,0.01049813,95255.0,95250.0,0.01049868]
[1768616432036,0.01049824,95254.0,95250.0,0.0629921]
[1768616432250,0.01049824,95254.0,95251.0,0.01049857]
[1768616433013,0.01010383,95256.0,95253.0,0.05249178]
[1768616433212,0.01010383,95256.0,95252.0,0.06299059]
[1768616433410,0.0106567,95258.0,95254.0,0.06298942]
[1768616433625,0.0106567,95258.0,95255.0,0.01049813]
[1768616433827,0.0106567,95258.0,95255.0,0.00676994]
[1768616434085,0.0106567,95258.0,95255.0,0.05926054]
[1768616434293,0.0001589,95258.0,95256.0,0.02099127]
[1768616434515,0.0001589,95258.0,95256.0,0.01830552]
[1768616434720,0.0001589,95258.0,95255.0,0.00676994]
[1768616435130,0.0106567,95258.0,95255.0,0.00676994]
[1768616435740,0.0001589,95258.0,95255.0,0.00669179]
[1768616435940,0.0001589,95258.0,95253.0,0.06298904]
[1768616436190,0.0001589,95258.0,95255.0,0.05249051]
[1768616436484,0.0001589,95258.0,95253.0,0.01049835]
[1768616436690,0.0106567,95258.0,95255.0,0.01049813]
[1768616437321,0.0001589,95258.0,95255.0,0.06298878]
[1768616437520,0.0001589,95258.0,95255.0,0.01049813]
[1768616438176,0.0106567,95258.0,95254.0,0.01049824]
[1768616438388,0.06314581,95258.0,95254.0,0.01049824]
[1768616438965,0.0106567,95258.0,95254.0,0.0629894]
[1768616439325,0.0106567,95258.0,95255.0,0.01049813]
[1768616441053,0.0106567,95258.0,95255.0,0.06298879]
[1768616441478,0.0001589,95258.0,95255.0,0.01049813]
[1768616441717,0.0001589,95258.0,95255.0,0.06298843]
[1768616441928,0.0001589,95258.0,95254.0,0.05249114]
[1768616442555,0.05264802,95258.0,95253.0,0.06299006]
[1768616442760,0.0001589,95258.0,95254.0,0.05249092]
[1768616442969,0.05264829,95258.0,95253.0,0.06299011]
[1768616443395,0.06314609,95258.0,95254.0,0.01049824]
[1768616443606,0.06298794,95257.0,95253.0,0.01049835]
[1768616444252,0.01049791,95257.0,95254.0,0.01049824]
[1768616444660,0.01049791,95257.0,95254.0,0.06298927]
[1768616445046,0.0106567,95258.0,95255.0,0.01049813]
[1768616445248,0.0001589,95258.0,95255.0,0.06298881]
[1768616445400,0.0001589,95258.0,95255.0,0.01049813]
[1768616445606,0.0001589,95258.0,95255.0,0.06298879]
[1768616445807,0.0106567,95258.0,95255.0,0.01049813]
[1768616446004,0.0001589,95258.0,95255.0,0.01049813]
[1768616446275,0.0001589,95258.0,95255.0,0.06298868]
[1768616446692,0.0001589,95258.0,95255.0,0.01049813]
[1768616447071,0.0001589,95258.0,95255.0,0.06298867]
[1768616447274,0.0001589,95258.0,95255.0,0.01049813]
[1768616447486,0.0001589,95258.0,95255.0,0.06298857]
[1768616448374,0.0011589,95258.0,95255.0,0.0629888]
[1768616448972,0.0001589,95258.0,95255.0,0.0629888]
[1768616449415,0.00100003,95258.0,95255.0,0.0629888]
[1768616449935,0.06298721,95258.0,95254.0,0.01049824]
[1768616450538,0.01049783,95258.0,95254.0,0.06298923]
[1768616450735,0.06298718,95258.0,95254.0,0.01049824]
[1768616450941,0.01049783,95258.0,95254.0,0.06298947]
[1768616451149,0.01049783,95258.0,95254.0,0.06291131]
[1768616451357,0.01049783,95258.0,95255.0,0.01049813]
[1768616451559,0.01149783,95258.0,95254.0,0.01042008]
[1768616451989,0.01149783,95258.0,95255.0,0.01049813]
[1768616452198,0.01049783,95258.0,95255.0,0.06298869]
[1768616452632,0.00100003,95258.0,95255.0,0.06298869]
[1768616452832,0.01149783,95258.0,95255.0,0.01049813]
[1768616453039,3e-08,95258.0,95255.0,0.01049813]
[1768616453244,3e-08,95258.0,95255.0,0.06298872]
[1768616453455,3e-08,95258.0,95254.0,0.01049824]
[1768616454024,0.00100003,95258.0,95254.0,0.01049824]
[1768616454224,0.01149783,95258.0,95255.0,0.01049813]
[1768616455277,0.00100003,95258.0,95255.0,0.06298871]
[1768616455490,0.01149783,95258.0,95255.0,0.01049813]
[1768616455691,0.01149783,95258.0,95254.0,0.01049824]
[1768616455899,0.06298723,95258.0,95254.0,0.01049824]
[1768616456279,0.06398723,95258.0,95254.0,0.01049824]
[1768616456900,0.01049791,95257.0,95254.0,0.01049824]
[1768616458185,0.06298771,95257.0,95254.0,0.01049824]
[1768616458387,0.01049791,95257.0,95253.0,0.06299012]
[1768616459154,0.01049791,95257.0,95254.0,0.06298936]
[1768616459282,0.01049791,95257.0,95254.0,0.01049824]
[1768616460196,0.01049783,95258.0,95254.0,0.01049824]
[1768616460398,0.01049783,95258.0,95254.0,0.06298945]
[1768616460628,0.01049783,95258.0,95254.0,0.06291129]
[1768616461235,0.001,95257.0,95254.0,0.06291129]
[1768616461688,0.01049783,95258.0,95254.0,0.06291129]
[1768616462948,0.01049783,95258.0,95254.0,0.01042008]
[1768616463370,0.01149783,95258.0,95254.0,0.01042008]
[1768616463803,0.01149783,95258.0,95254.0,0.06291108]
[1768616464337,0.01049783,95258.0,95254.0,0.06291108]
[1768616464660,0.06298696,95258.0,95254.0,0.01042008]
[1768616464865,0.06398696,95258.0,95254.0,0.01042008]
[1768616465372,0.06298696,95258.0,95254.0,0.01042008]
[1768616465734,0.06298696,95258.0,95254.0,0.06291127]
[1768616466331,0.01049783,95258.0,95255.0,0.01049813]
[1768616467060,0.01149783,95258.0,95255.0,0.01049813]
[1768616468419,0.06498693,95258.0,95255.0,0.01049813]
[1768616468978,0.06498693,95258.0,95254.0,0.01042008]
[1768616469389,0.01049802,95256.0,95252.0,0.01049846]
[1768616469601,0.0629885,95256.0,95252.0,0.01049846]
[1768616469816,0.01049824,95254.0,95251.0,0.01049857]
[1768616471360,0.01049824,95254.0,95249.0,0.06299261]
[1768616471542,0.06298971,95254.0,95249.0,0.06299261]
[1768616471754,0.01049824,95254.0,95250.0,0.01049868]
[1768616471951,0.06298972,95254.0,95250.0,0.01049868]
[1768616472337,0.01049824,95254.0,95250.0,0.06299194]
[1768616473073,0.01049835,95253.0,95250.0,0.01049868]
[1768616473441,0.01049835,95253.0,95250.0,0.06299204]
[1768616473803,0.01049824,95254.0,95250.0,0.06299204]
[1768616474295,0.01049824,95254.0,95251.0,0.06299125]
[1768616474744,0.01049824,95254.0,95251.0,0.01049857]
[1768616475927,0.01049824,95254.0,95251.0,0.06299143]
[1768616476315,0.01049824,95254.0,95251.0,0.01049857]
[1768616476636,0.06298952,95254.0,95251.0,0.01049857]
[1768616476842,0.06298952,95254.0,95250.0,0.01049868]
[1768616479247,0.01049846,95252.0,95249.0,0.01049879]
[1768616479376,0.01049879,95249.0,95245.0,0.06299495]
[1768616479649,0.01049879,95249.0,95245.0,0.01049923]
[1768616479806,0.0104989,95248.0,95245.0,0.01049923]
[1768616480528,0.0104989,95248.0,95245.0,0.06299535]
[1768616480831,0.0104989,95248.0,95245.0,0.01049923]
[1768616481212,0.01049868,95250.0,95246.0,0.06299476]
[1768616482284,0.01049868,95250.0,95247.0,0.01049901]
[1768616482435,0.01049868,95250.0,95247.0,0.06299404]
[1768616483009,0.01049868,95250.0,95247.0,0.01049901]
[1768616484142,0.01049857,95251.0,95247.0,0.06299399]
[1768616484557,0.01049857,95251.0,95247.0,0.01049901]
[1768616485305,0.01049868,95250.0,95247.0,0.01049901]
[1768616486240,0.01049868,95250.0,95247.0,0.06299396]
[1768616486465,0.01049857,95251.0,95247.0,0.01049901]
[1768616486711,0.01049868,95250.0,95247.0,0.01049901]
[1768616486959,0.01049879,95249.0,95246.0,0.01049912]
[1768616487198,0.01049868,95250.0,95246.0,0.01049912]
[1768616487453,0.01049868,95250.0,95247.0,0.01049901]
[1768616488020,0.01049857,95251.0,95248.0,0.0104989]
[1768616488223,0.01049868,95250.0,95247.0,0.01049901]
[1768616488793,0.06299224,95250.0,95247.0,0.01049901]
[1768616489047,0.01049868,95250.0,95247.0,0.01049901]
[1768616490136,0.06299219,95250.0,95247.0,0.01049901]
[1768616490960,0.06299219,95250.0,95246.0,0.01049912]
[1768616491109,0.01049868,95250.0,95246.0,0.01049912]
[1768616491328,0.01049857,95251.0,95247.0,0.01049901]
[1768616492391,0.01049857,95251.0,95248.0,0.0104989]
[1768616492568,0.01049857,95251.0,95248.0,0.06299341]
[1768616493116,0.01049846,95252.0,95248.0,0.06299341]
[1768616493324,0.01049824,95254.0,95249.0,0.06299268]
[1768616493534,0.01049835,95253.0,95249.0,0.06299269]
[1768616493742,0.01049846,95252.0,95248.0,0.0104989]
[1768616493954,0.01049857,95251.0,95248.0,0.0104989]
[1768616494371,0.01049846,95252.0,95248.0,0.0104989]
[1768616494577,0.01049846,95252.0,95248.0,0.06299321]
[1768616494777,0.06299121,95252.0,95248.0,0.0104989]
[1768616495018,0.01049868,95250.0,95247.0,0.01049901]
[1768616495645,0.01049857,95251.0,95247.0,0.01049901]
[1768616495841,0.01049857,95251.0,95247.0,0.06299404]
[1768616496195,0.01049857,95251.0,95247.0,0.01049901]
[1768616496320,0.01049857,95251.0,95247.0,0.06299372]
[1768616496522,0.01049857,95251.0,95248.0,0.0104989]
[1768616496816,0.01049857,95251.0,95248.0,0.06299334]
[1768616497230,0.01049769,95259.0,95255.0,0.05249056]
[1768616497452,0.01049769,95259.0,95256.0,0.06298807]
[1768616497453,0.12724,95259.0,95256.0,0.06298807]
[1768616497660,0.12724,95259.0,95256.0,0.01049802]
[1768616497856,0.12724,95259.0,95256.0,0.0629881]
[1768616498063,0.12724,95259.0,95256.0,0.01049802]
[1768616498264,0.12724,95259.0,95256.0,0.06298814]
[1768616498467,0.01049725,95263.0,95259.0,0.01049769]
[1768616498711,0.05248773,95261.0,95256.0,0.06298814]
[1768616498913,0.0026854,95259.0,95256.0,0.06298814]
[1768616499760,0.0026854,95259.0,95251.0,0.20997135]
[1768616499761,0.04664248,95258.0,95241.0,0.2099934]
[1768616500107,0.04664248,95258.0,95193.0,0.05776876]
[1768616500108,0.06298791,95257.0,95253.0,0.01049835]
[1768616500332,0.01049802,95256.0,95253.0,0.00889487]
[1768616500541,0.01049802,95256.0,95252.0,0.01049846]
[1768616500542,0.01049813,95255.0,95252.0,0.01049846]
[1768616500773,0.06298883,95255.0,95252.0,0.01049846]
[1768616500995,0.01049824,95254.0,95251.0,0.01049857]
[1768616501594,0.01049813,95255.0,95251.0,0.01049857]
[1768616502026,0.01049813,95255.0,95252.0,0.01049846]
[1768616502499,0.01049791,95257.0,95244.0,0.05249674]
[1768616502500,0.01049857,95251.0,95244.0,0.05249674]
[1768616502724,0.06299213,95250.0,95243.0,0.0004723]
[1768616502934,0.0104989,95248.0,95244.0,0.01049934]
[1768616503152,0.01049901,95247.0,95243.0,0.05958048]
[1768616503361,0.0104989,95248.0,95244.0,0.05910807]
[1768616503568,0.01049901,95247.0,95244.0,0.04860873]
[1768616503772,0.01049901,95247.0,95244.0,0.05910807]
[1768616503988,0.01049901,95247.0,95244.0,0.04860873]
[1768616508242,0.0104989,95248.0,95244.0,0.05910807]
[1768616508647,0.01049879,95249.0,95245.0,0.01049923]
[1768616508802,0.01049879,95249.0,95246.0,0.01049912]
[1768616509008,0.01049868,95250.0,95246.0,0.01049912]
[1768616509450,0.01049879,95249.0,95245.0,0.05910796]
[1768616509646,0.0104989,95248.0,95245.0,0.04860873]
[1768616510199,0.05249509,95247.0,95245.0,0.04856329]
[1768616510479,0.0104989,95248.0,95245.0,0.04856329]
[1768616510689,0.05249551,95247.0,95245.0,0.04856329]
[1768616510900,0.05249551,95247.0,95243.0,0.04908103]
[1768616510901,0.01049912,95246.0,95243.0,0.04908103]
[1768616511108,0.06299478,95246.0,95243.0,0.04908103]
[1768616511313,0.01049912,95246.0,95243.0,0.04908103]
[1768616511553,0.06299509,95246.0,95243.0,0.04908103]
[1768616511762,0.01049912,95246.0,95243.0,0.04908103]
[1768616511972,0.06299494,95246.0,95243.0,0.04908103]
[1768616512811,0.0524963,95245.0,95243.0,0.04908103]
[1768616513016,0.01049912,95246.0,95243.0,0.04908103]
[1768616513426,0.05249674,95244.0,95243.0,0.04908103]
[1768616513850,0.05249633,95245.0,95243.0,0.04908103]
[1768616514075,0.05249663,95245.0,95243.0,0.04908103]
[1768616514283,0.05249674,95244.0,95243.0,0.04908103]
[1768616514700,0.05249636,95245.0,95243.0,0.04844779]
[1768616514892,0.01049912,95246.0,95243.0,0.04844779]
[1768616515236,0.05249621,95245.0,95243.0,0.04844779]
[1768616515456,0.01049912,95246.0,95243.0,0.04844779]
[1768616515878,0.01049912,95246.0,95243.0,0.05894724]
[1768616516096,0.01049912,95246.0,95243.0,0.0589018]
[1768616516802,0.01049901,95247.0,95243.0,0.0589018]
[1768616517065,0.06299476,95246.0,95243.0,0.04840235]
[1768616517275,0.01049912,95246.0,95243.0,0.04840235]
[1768616517562,0.01049912,95246.0,95243.0,0.11139909]
[1768616518375,0.01049912,95246.0,95243.0,0.0589018]
[1768616518581,0.01049912,95246.0,95243.0,0.04840235]
[1768616518582,0.06299477,95246.0,95243.0,0.04840235]
[1768616520220,0.01049912,95246.0,95243.0,0.04840235]
[1768616521150,0.05249619,95245.0,95243.0,0.04840235]
[1768616521559,0.01049912,95246.0,95243.0,0.04840235]
[1768616521934,0.06299545,95245.0,95242.0,0.01049912]
[1768616522133,0.01049923,95245.0,95242.0,0.01049912]
[1768616522342,0.01049923,95245.0,95242.0,0.06040572]
[1768616522746,0.01049923,95245.0,95242.0,0.12340295]
[1768616523103,0.01049912,95246.0,95242.0,0.12340295]
[1768616523306,0.01049912,95246.0,95243.0,0.0499066]
[1768616523513,0.01049912,95246.0,95243.0,0.1129033]
[1768616523732,0.01049912,95246.0,95243.0,0.06040605]
[1768616523941,0.01049912,95246.0,95243.0,0.0499066]
[1768616524387,0.05249624,95245.0,95243.0,0.0499066]
[1768616524993,0.05249624,95245.0,95236.0,0.06300114]
[1768616524994,0.01049945,95243.0,95236.0,0.06300114]
[1768616525203,0.01049945,95243.0,95225.0,0.21018577]
[1768616525204,0.06300102,95237.0,95228.0,0.01050111]
[1768616525469,0.05250391,95231.0,95230.0,1e-08]
[1768616525678,0.01050111,95228.0,95225.0,0.0001589]
[1768616526080,0.01050111,95228.0,95225.0,0.01066034]
[1768616526290,0.01050089,95230.0,95225.0,0.01066034]
[1768616526511,0.01050089,95230.0,95225.0,0.06316745]
[1768616526723,0.01050089,95230.0,95225.0,0.01066034]
[1768616527353,0.01054807,95231.0,95227.0,0.05250602]
[1768616527749,0.01054807,95231.0,95228.0,0.01045568]
[1768616529444,4.729e-05,95231.0,95228.0,0.01045568]
[1768616530103,4.729e-05,95231.0,95228.0,0.0629612]
[1768616530978,4.729e-05,95231.0,95228.0,0.01045568]
[1768616531603,4.729e-05,95231.0,95228.0,0.06296119]
[1768616531824,4.729e-05,95231.0,95227.0,0.01050122]
[1768616531825,0.01054807,95231.0,95227.0,0.01050122]
[1768616532028,0.01054807,95231.0,95227.0,0.01045579]
[1768616532460,0.010501,95229.0,95226.0,0.0104559]
[1768616532667,0.06300602,95229.0,95226.0,0.0104559]
[1768616533107,0.06300602,95229.0,95225.0,0.01066034]
[1768616533108,0.01050111,95228.0,95225.0,0.01066034]
[1768616533306,0.010501,95229.0,95225.0,0.01066034]
[1768616534873,0.010501,95229.0,95225.0,0.06316755]
[1768616535431,0.01050089,95230.0,95225.0,0.06316755]
[1768616535432,0.01050089,95230.0,95227.0,0.01050122]
[1768616535666,0.01070763,95231.0,95228.0,0.06300638]
[1768616536287,0.02120841,95231.0,95228.0,0.01050111]
[1768616536494,0.06300576,95230.0,95226.0,0.01050133]
[1768616536735,0.01050089,95230.0,95226.0,0.01050133]
[1768616536908,0.06300577,95230.0,95226.0,0.01050133]
[1768616537298,0.01050111,95228.0,95225.0,0.0001589]
[1768616538878,0.06300697,95228.0,95225.0,0.0001589]
[1768616539364,0.01050111,95228.0,95225.0,0.0001589]
[1768616539584,0.01050111,95228.0,95225.0,0.01066034]
[1768616540291,0.01050111,95228.0,95225.0,0.0631675]
[1768616540491,0.010501,95229.0,95226.0,0.01050133]
[1768616542051,0.07371277,95231.0,95226.0,0.01050133]
[1768616542052,0.02120841,95231.0,95228.0,0.01050111]
[1768616542254,0.01070763,95231.0,95228.0,0.01050111]
[1768616543043,0.01070763,95231.0,95228.0,0.06300652]
[1768616543215,0.01070763,95231.0,95228.0,0.01050111]
[1768616545309,0.02120841,95231.0,95228.0,0.01050111]